[Event "XLI Barbera del Valles Open 2018"]
[Site "Barbera del Valles"]
[Date "2018.07.12"]
[Round "9"]
[White "Manolache, Marius"]
[Black "Mohammad Nubairshah Shaikh"]
[Result "1-0"]
[ECO "D02"]
[WhiteElo "2494"]
[BlackElo "2441"]
[Annotator "ChessBase"]
[PlyCount "51"]
[EventDate "2018.07.04"]
[EventType "swiss"]
[EventCountry "ESP"]
[SourceTitle "playchess.com"]
[Source "ChessBase"]
[SourceQuality "1"]
[TimeControl "5400+30"]

1. d4 {[%emt 0:00:00]} d5 {[%emt 0:03:33]} 2. Nf3 {[%emt 0:00:00]} Nf6 3. g3 g6 {[%emt 0:02:44]} 4. Bg2 {[%emt 0:00:54]} Bg7 {[%emt 0:00:02]} 5. c4 {[%emt 0:00:56]} c6 {[%emt 0:00:33]} 6. Nc3 O-O {[%emt 0:05:06]} 7. cxd5 {[%emt 0:04:24]} cxd5 {[%emt 0:00:03]} 8. Ne5 Nc6 {[%emt 0:05:25]} 9. O-O {[%emt 0:00:36]} Bf5 {[%emt 0:17:21]} 10. Be3 {[%emt 0:20:34]} Rc8 {[%emt 0:13:49]} 11. Rc1 {[%emt 0:18:49]} Qd6 {[%emt 0:02:46]} 12. Bf4 {[%emt 0:08:10]} Qb4 {[%emt 0:09:37]} 13. Bxd5 {[%emt 0:16:28]} Nxd4 {[%emt 0:26:16]} 14. e4 Bh3 {[%emt 0:00:21]} 15. Re1 {[%emt 0:09:40]} e6 16. a3 {[%emt 0:01:48]} Qxb2 {[%emt 0:03:56]} 17. Qxd4 {[%emt 0:00:10]} exd5 {[%emt 0:03:27]} 18. Nd3 {[%emt 0:04:10]} Qxa3 {[%emt 0:00:35]} 19. Nb5 {[%emt 0:03:06]} Rxc1 20. Nxa3 {[%emt 0:00:25]} Rxe1+ {[%emt 0:01:08]} 21. Nxe1 {[%emt 0:00:00]} Nxe4 22. Be5 Bh6 {[%emt 0:03:32]} 23. Qxd5 {[%emt 0:00:59]} Nd2 {[%emt 0:00:16]} 24. Bc3 {[%emt 0:00:38]} Nf1 25. Qd4 {[%emt 0:00:30]} f6 {[%emt 0:00:52]} 26. Qh4 {[%emt 0:00:18]} 1-0

[Event "XLI Barbera del Valles Open 2018"]
[Site "Barbera del Valles"]
[Date "2018.07.12"]
[Round "9"]
[White "Alsina Leal, Daniel"]
[Black "Herraiz, Herminio"]
[Result "1/2-1/2"]
[ECO "B33"]
[WhiteElo "2492"]
[BlackElo "2421"]
[Annotator "ChessBase"]
[PlyCount "60"]
[EventDate "2018.07.04"]
[EventType "swiss"]
[EventCountry "ESP"]
[SourceTitle "playchess.com"]
[Source "ChessBase"]
[SourceQuality "1"]
[TimeControl "5400+30"]

1. e4 {[%emt 0:00:00]} c5 {[%emt 0:00:00]} 2. Nf3 {[%emt 0:00:00]} Nc6 {[%emt 0:00:00]} 3. d4 {[%emt 0:00:08]} cxd4 {[%emt 0:00:01]} 4. Nxd4 {[%emt 0:00:05]} Nf6 {[%emt 0:00:17]} 5. Nc3 {[%emt 0:00:11]} e5 {[%emt 0:00:42]} 6. Ndb5 {[%emt 0:00:37]} d6 {[%emt 0:00:19]} 7. Bg5 {[%emt 0:01:20]} a6 {[%emt 0:00:34]} 8. Na3 {[%emt 0:00:11]} Be6 {[%emt 0:01:00]} 9. Nc4 {[%emt 0:02:03]} Rb8 {[%emt 0:01:48]} 10. Nd5 {[%emt 0:07:53]} Bxd5 {[%emt 0:02:15]} 11. Bxf6 {[%emt 0:26:21]} Qxf6 {[%emt 0:00:42]} 12. exd5 {[%emt 0:00:20]} Ne7 {[%emt 0:03:08]} 13. Be2 {[%emt 0:10:22]} g6 {[%emt 0:25:46]} 14. O-O {[%emt 0:01:45]} Bg7 {[%emt 0:08:09]} 15. a4 {[%emt 0:00:33]} O-O {[%emt 0:01:43]} 16. a5 {[%emt 0:01:38]} e4 {[%emt 0:05:36]} 17. c3 {[%emt 0:06:34]} Rbd8 18. Ra4 {[%emt 0:04:00]} Qg5 {[%emt 0:15:01]} 19. Nb6 {[%emt 0:04:28]} f5 {[%emt 0:00:10]} 20. Rc4 {[%emt 0:01:56]} Nc8 21. Rc7 {[%emt 0:10:46]} Nxb6 {[%emt 0:13:38]} 22. axb6 {[%emt 0:00:04]} Rf7 {[%emt 0:02:19]} 23. Qa4 {[%emt 0:04:19]} Qd2 {[%emt 0:04:23]} 24. Qc4 {[%emt 0:03:22]} Rdf8 {[%emt 0:01:51]} 25. Rxf7 {[%emt 0:07:58]} Rxf7 {[%emt 0:00:39]} 26. Qc8+ {[%emt 0:00:08]} Bf8 {[%emt 0:00:22]} 27. Bxa6 {[%emt 0:02:34]} e3 {[%emt 0:00:57]} 28. fxe3 {[%emt 0:02:28]} Qxe3+ {[%emt 0:00:06]} 29. Rf2 {[%emt 0:00:54]} Qxb6 {[%emt 0:00:32]} 30. Bf1 {[%emt 0:00:13]} Re7 {[%emt 0:04:17]} 1/2-1/2

[Event "XLI Barbera del Valles Open 2018"]
[Site "Barbera del Valles"]
[Date "2018.07.12"]
[Round "9"]
[White "Oliva Castaneda, Kevel"]
[Black "Alonso Moyano, Jonathan"]
[Result "1-0"]
[ECO "A80"]
[WhiteElo "2491"]
[BlackElo "2400"]
[Annotator "RC"]
[PlyCount "65"]
[EventDate "2018.07.04"]
[EventType "swiss"]
[EventCountry "ESP"]
[SourceTitle "playchess.com"]
[Source "ChessBase"]
[SourceQuality "1"]
[TimeControl "5400+30"]

1. d4 f5 {[%emt 0:00:28]} 2. Nc3 {[%emt 0:00:08]} Nf6 {[%emt 0:00:43]} 3. Bg5 {[%emt 0:00:12]} d5 {[%emt 0:00:20]} 4. e3 {[%emt 0:00:11]} e6 {[%emt 0:00:51]} 5. Nf3 {[%emt 0:00:09]} Be7 {[%emt 0:04:10]} 6. Bd3 {[%emt 0:00:10]} O-O {[%emt 0:00:20]} 7. O-O {[%emt 0:00:11]} c5 {[%emt 0:10:34]} 8. dxc5 Bxc5 {[%emt 0:05:40]} 9. Na4 {[%emt 0:01:14]} Be7 {[%emt 0:00:07]} 10. c4 {[%emt 0:00:38]} Nc6 {[%emt 0:04:36]} 11. Nc3 {[%emt 0:15:19]} Ne4 {[%emt 0:08:34]} 12. Bxe7 {[%emt 0:04:20]} Qxe7 {[%emt 0:01:51]} 13. Rc1 {[%emt 0:05:24]} Rd8 {[%emt 0:05:36]} 14. cxd5 {[%emt 0:01:44]} Nxc3 {[%emt 0:00:05]} 15. Rxc3 {[%emt 0:00:07]} Rxd5 {[%emt 0:00:26]} 16. Qe2 {[%emt 0:00:26]} Bd7 {[%emt 0:11:28]} 17. e4 {[%emt 0:06:32]} Rd6 {[%emt 0:00:25]} 18. Re1 {[%emt 0:08:31]} Re8 {[%emt 0:05:11]} 19. exf5 {[%emt 0:02:21]} exf5 {[%emt 0:00:06]} 20. Bc4+ {[%emt 0:00:07]} Be6 {[%emt 0:01:05]} 21. Rd3 {[%emt 0:12:34]} Rxd3 {[%emt 0:09:23]} 22. Qxd3 {[%emt 0:00:14]} Qf7 {[%emt 0:00:21]} 23. Qe3 {[%emt 0:05:32]} Bxc4 {[%emt 0:03:22]} 24. Qxe8+ {[%emt 0:00:11]} Qxe8 {[%emt 0:00:05]} 25. Rxe8+ {[%emt 0:00:05]} Kf7 {[%emt 0:00:03]} 26. Rc8 {[%emt 0:00:12]} Bxa2 {[%emt 0:00:14]} 27. Rc7+ {[%emt 0:00:07]} Kf6 {[%emt 0:00:05]} 28. Rxb7 {[%emt 0:00:09]} Bd5 {[%emt 0:04:37]} 29. Ne1 {[%emt 0:00:19]} a5 {[%emt 0:01:43]} 30. Nd3 {[%emt 0:00:45]} Bc4 {[%emt 0:02:22]} 31. Rb6 {[%emt 0:00:25]} Bxd3 {[%emt 0:00:36]} 32. Rxc6+ {[%emt 0:00:05]} Kg5 {[%emt 0:01:30]} 33. Rc7 {[%emt 0:00:06]} 1-0

[Event "XLI Barbera del Valles Open 2018"]
[Site "Barbera del Valles"]
[Date "2018.07.12"]
[Round "9"]
[White "Perez Mitjans, Orelvis"]
[Black "Munoz, Miguel"]
[Result "0-1"]
[ECO "B01"]
[WhiteElo "2399"]
[BlackElo "2500"]
[Annotator "RC"]
[PlyCount "170"]
[EventDate "2018.07.04"]
[EventType "swiss"]
[EventCountry "ESP"]
[SourceTitle "playchess.com"]
[Source "ChessBase"]
[SourceQuality "1"]
[TimeControl "5400+30"]

1. e4 d5 {[%emt 0:02:37]} 2. exd5 {[%emt 0:02:00]} Nf6 {[%emt 0:00:17]} 3. Nf3 {[%emt 0:02:14]} Qxd5 {[%emt 0:00:40]} 4. Nc3 {[%emt 0:07:10]} Qa5 {[%emt 0:00:26]} 5. d4 {[%emt 0:08:33]} Bf5 {[%emt 0:02:54]} 6. Ne5 {[%emt 0:03:07]} e6 {[%emt 0:00:14]} 7. Nc4 {[%emt 0:04:39]} Qa6 {[%emt 0:01:12]} 8. Bf4 {[%emt 0:16:01]} Qc6 {[%emt 0:01:18]} 9. a3 {[%emt 0:08:51]} Ne4 {[%emt 0:09:45]} 10. Nb5 {[%emt 0:08:37]} Bd6 {[%emt 0:03:49]} 11. Qf3 {[%emt 0:06:21]} O-O {[%emt 0:05:57]} 12. Nbxd6 {[%emt 0:01:48]} cxd6 {[%emt 0:04:03]} 13. Bd3 {[%emt 0:00:37]} d5 {[%emt 0:00:48]} 14. Ne3 {[%emt 0:05:09]} Bg6 {[%emt 0:02:19]} 15. Qe2 {[%emt 0:01:32]} Nc3 {[%emt 0:04:15]} 16. Qd2 {[%emt 0:00:03]} Ne4 {[%emt 0:00:09]} 17. Qa5 {[%emt 0:01:36]} Nf6 {[%emt 0:00:33]} 18. Bb5 {[%emt 0:01:15]} Qb6 {[%emt 0:02:25]} 19. Qxb6 {[%emt 0:00:51]} axb6 {[%emt 0:00:08]} 20. f3 {[%emt 0:01:44]} Nc6 {[%emt 0:01:10]} 21. Rd1 {[%emt 0:00:19]} Rac8 {[%emt 0:01:35]} 22. c3 {[%emt 0:00:11]} Nh5 {[%emt 0:01:50]} 23. Bg5 {[%emt 0:00:41]} f6 {[%emt 0:06:13]} 24. Bh4 {[%emt 0:00:14]} Bf7 {[%emt 0:01:14]} 25. O-O {[%emt 0:01:58]} Nf4 {[%emt 0:05:55]} 26. Rfe1 {[%emt 0:01:51]} Rfd8 {[%emt 0:01:07]} 27. Bg3 {[%emt 0:00:40]} Nh5 {[%emt 0:00:36]} 28. Bf2 {[%emt 0:00:06]} Nf4 {[%emt 0:00:12]} 29. Bf1 {[%emt 0:01:38]} Na5 {[%emt 0:01:09]} 30. g3 {[%emt 0:00:33]} Ng6 {[%emt 0:00:08]} 31. f4 {[%emt 0:00:56]} f5 {[%emt 0:00:12]} 32. Bd3 {[%emt 0:02:27]} Ne7 {[%emt 0:14:19]} 33. h3 {[%emt 0:00:20]} Nc4 {[%emt 0:03:13]} 34. Nxc4 {[%emt 0:01:00]} dxc4 {[%emt 0:00:10]} 35. Bf1 {[%emt 0:00:35]} b5 {[%emt 0:04:00]} 36. Bg2 {[%emt 0:00:22]} Nd5 {[%emt 0:00:14]} 37. Re5 {[%emt 0:00:15]} Rd7 {[%emt 0:01:36]} 38. Be3 {[%emt 0:00:40]} h5 {[%emt 0:02:43]} 39. Bf3 {[%emt 0:00:30]} Kf8 {[%emt 0:00:31]} 40. Re1 {[%emt 0:00:49]} g6 {[%emt 0:01:34]} 41. Bd2 {[%emt 0:01:55]} Rc6 {[%emt 0:00:42]} 42. R1e2 {[%emt 0:01:21]} Ra6 {[%emt 0:00:20]} 43. g4 {[%emt 0:00:53]} hxg4 {[%emt 0:00:33]} 44. hxg4 {[%emt 0:00:01]} Kg7 {[%emt 0:03:13]} 45. Rg2 {[%emt 0:01:02]} Kf8 {[%emt 0:00:27]} 46. Kf2 {[%emt 0:00:43]} Ra8 {[%emt 0:01:20]} 47. Re1 {[%emt 0:01:19]} Kg7 {[%emt 0:00:46]} 48. Re5 {[%emt 0:01:02]} Kf8 {[%emt 0:00:15]} 49. Rg1 {[%emt 0:00:47]} Rd6 {[%emt 0:00:27]} 50. Bxd5 {[%emt 0:01:27]} Rxd5 {[%emt 0:00:12]} 51. gxf5 {[%emt 0:00:04]} gxf5 {[%emt 0:00:22]} 52. Re3 {[%emt 0:02:35]} Ke7 {[%emt 0:01:14]} 53. Rh3 {[%emt 0:00:14]} Rg8 {[%emt 0:02:38]} 54. Rxg8 {[%emt 0:00:50]} Bxg8 {[%emt 0:00:07]} 55. Ke2 {[%emt 0:00:59]} Rd7 {[%emt 0:02:48]} 56. Rh8 {[%emt 0:00:44]} Kf7 {[%emt 0:00:30]} 57. Be1 {[%emt 0:00:15]} Kg7 {[%emt 0:00:08]} 58. Rh1 {[%emt 0:00:11]} Kf8 {[%emt 0:00:41]} 59. Bf2 {[%emt 0:00:18]} Rh7 {[%emt 0:00:35]} 60. Ra1 {[%emt 0:00:18]} Bf7 {[%emt 0:00:35]} 61. a4 {[%emt 0:00:27]} bxa4 {[%emt 0:00:21]} 62. Rxa4 {[%emt 0:00:01]} Be8 {[%emt 0:00:01]} 63. Rb4 {[%emt 0:01:07]} Bc6 {[%emt 0:00:49]} 64. b3 {[%emt 0:01:11]} cxb3 {[%emt 0:01:34]} 65. Rxb3 {[%emt 0:00:48]} b5 {[%emt 0:00:13]} 66. Ra3 {[%emt 0:01:05]} Rh3 {[%emt 0:00:58]} 67. Be3 {[%emt 0:00:21]} Bf3+ {[%emt 0:02:21]} 68. Kf2 {[%emt 0:00:17]} Bd5 {[%emt 0:00:31]} 69. Bd2 {[%emt 0:02:26]} b4 {[%emt 0:00:23]} 70. Ra1 {[%emt 0:00:02]} bxc3 {[%emt 0:01:25]} 71. Bc1 {[%emt 0:00:09]} c2 {[%emt 0:00:56]} 72. Ke2 {[%emt 0:00:33]} Be4 {[%emt 0:00:25]} 73. Be3 {[%emt 0:00:39]} Rh2+ {[%emt 0:00:22]} 74. Bf2 {[%emt 0:00:11]} Ke7 {[%emt 0:01:23]} 75. Ke3 {[%emt 0:00:17]} Kd6 {[%emt 0:00:45]} 76. Be1 {[%emt 0:01:00]} Rh3+ {[%emt 0:01:06]} 77. Kd2 {[%emt 0:00:07]} Kd5 {[%emt 0:00:16]} 78. Ra5+ {[%emt 0:01:42]} Kxd4 {[%emt 0:00:54]} 79. Bf2+ {[%emt 0:00:00]} Kc4 {[%emt 0:00:17]} 80. Rc5+ {[%emt 0:00:08]} Kb4 {[%emt 0:00:06]} 81. Rc8 {[%emt 0:00:11]} Rh1 {[%emt 0:01:48]} 82. Be3 {[%emt 0:00:33]} Rd1+ {[%emt 0:00:35]} 83. Ke2 {[%emt 0:00:01]} Bd3+ {[%emt 0:00:16]} 84. Kf2 {[%emt 0:00:02]} Bc4 {[%emt 0:00:20]} 85. Rb8+ {[%emt 0:00:21]} Kc3 {[%emt 0:00:12]} 0-1